bitfinex/quotes_SOLUSD_20250904
["timestamp","ask_amount","ask_price","bid_price","bid_amount"]
[1756962196993,5.04844095,206.98,206.96,13.59559401]
[1756962198183,5.04844095,206.97,206.95,0.03]
[1756962199100,5.04844095,206.97,206.95,13.62559401]
[1756962200413,5.73844095,206.96,206.95,0.03]
[1756962200702,36.7868819,206.96,206.82,45.17844095]
[1756962200907,5.04844095,206.89,206.83,5.04844095]
[1756962201216,5.73844095,206.89,206.84,13.59559401]
[1756962201400,0.69,206.88,206.84,13.59559401]
[1756962201602,4.83321694,206.91,206.84,13.59559401]
[1756962201792,5.73844095,206.9,206.84,23.47861355]
[1756962201994,0.69,206.9,206.86,13.59559401]
[1756962202402,0.69,206.9,206.85,18.9283581]
[1756962202805,0.69,206.89,206.85,13.87991715]
[1756962203003,5.73844095,206.91,206.85,18.9283581]
[1756962203316,5.04844095,206.9,206.85,18.9283581]
[1756962203485,5.04844095,206.89,206.85,13.87991715]
[1756962203687,5.73844095,206.89,206.85,13.59559401]
[1756962203911,5.73844095,206.88,206.85,13.59559401]
[1756962204309,0.69,206.87,206.85,13.59559401]
[1756962205389,5.04844095,206.88,206.85,13.59559401]
[1756962205591,3.23396258,206.87,206.85,13.59559401]
[1756962206301,3.92396258,206.86,206.83,13.59559401]
[1756962206497,3.23396258,206.85,206.83,13.59559401]
[1756962206707,3.92396258,206.86,206.83,13.59559401]
[1756962207202,39.92,206.93,206.83,13.59559401]
[1756962207203,0.69,206.88,206.83,13.59559401]
[1756962207400,3.92396258,206.87,206.83,13.59559401]
[1756962207604,3.92396258,206.87,206.85,0.03]
[1756962208342,3.23396258,206.88,206.85,0.03]
[1756962208510,3.23396258,206.88,206.85,13.62559401]
[1756962208813,3.92396258,206.88,206.85,13.62559401]
[1756962209322,3.92396258,206.88,206.85,18.45997357]
[1756962209610,30.83287568,206.92,206.85,18.45997357]
[1756962209611,3.23396258,206.86,206.85,0.03]
[1756962210022,3.92396258,206.86,206.85,0.03]
[1756962211198,0.69,206.86,206.85,0.03]
[1756962211413,3.92396258,206.86,206.85,0.03]
[1756962211612,29.92396258,206.86,206.85,0.03]
[1756962211814,62.1698129,206.83,206.66,53.8660874]
[1756962212025,20.0,206.73,206.64,4.83535261]
[1756962212200,26.0,206.66,206.55,4.87585126]
[1756962212399,0.69,206.65,206.55,21.82089979]
[1756962212599,3.23396258,206.65,206.59,3.23396258]
[1756962212799,14.54298665,206.68,206.61,3.23396258]
[1756962213029,14.54298665,206.68,206.6,0.55]
[1756962213224,26.0,206.71,206.62,13.59559401]
[1756962213395,14.54298665,206.67,206.62,13.59559401]
[1756962213601,3.23396258,206.67,206.62,14.14559401]
[1756962213922,3.23396258,206.67,206.63,0.55]
[1756962214225,0.69,206.67,206.61,4.84003678]
[1756962214427,3.23396258,206.64,206.62,13.59559401]
[1756962214799,65.84,206.72,206.63,3.78396258]
[1756962215012,3.23396258,206.69,206.64,0.28432314]
[1756962215213,0.69,206.68,206.66,13.59559401]
[1756962215420,13.59559401,206.71,206.66,13.59559401]
[1756962215626,0.69,206.67,206.62,13.87991715]
[1756962216123,0.69,206.67,206.62,13.59559401]
[1756962216302,0.69,206.69,206.62,13.59559401]
[1756962216500,8.59344142,206.66,206.62,13.59559401]
[1756962216706,8.59344142,206.64,206.62,4.83980253]
[1756962217116,8.59344142,206.66,206.63,13.59559401]
[1756962217310,8.59344142,206.67,206.63,13.59559401]
[1756962217511,8.59344142,206.69,206.64,0.28432314]
[1756962217714,8.59344142,206.69,206.65,13.59559401]
[1756962217910,8.59344142,206.69,206.63,8.59344142]
[1756962218225,8.59344142,206.68,206.64,13.87991715]
[1756962218425,8.59344142,206.66,206.63,13.59559401]
[1756962218725,8.59344142,206.66,206.64,4.8393341]
[1756962219105,0.69,206.66,206.6,13.59559401]
[1756962219317,8.59344142,206.65,206.61,0.28432314]
[1756962220124,8.59344142,206.63,206.61,0.28432314]
[1756962220424,8.59344142,206.64,206.61,0.28432314]
[1756962220730,8.59344142,206.66,206.62,13.59559401]
[1756962220902,0.69,206.65,206.62,13.59559401]
[1756962221107,9.28344142,206.65,206.62,13.59559401]
[1756962221308,0.69,206.67,206.62,13.59559401]
[1756962221520,8.59344142,206.64,206.62,13.59559401]
[1756962221728,9.28344142,206.63,206.61,13.59559401]
[1756962221925,8.59344142,206.62,206.61,13.59559401]
[1756962222314,0.69,206.65,206.61,13.59559401]
[1756962222518,0.69,206.67,206.62,0.28432314]
[1756962222732,8.59344142,206.63,206.59,0.28432314]
[1756962223031,8.59344142,206.64,206.61,0.28432314]
[1756962223213,0.69,206.66,206.61,0.28432314]
[1756962223214,8.59344142,206.66,206.61,0.28432314]
[1756962223528,0.69,206.69,206.62,0.55]
[1756962223529,8.59344142,206.67,206.62,0.55]
[1756962223728,4.83700019,206.74,206.6,13.59559401]
[1756962223729,0.69,206.73,206.66,13.87991715]
[1756962223939,12.0882716,206.82,206.66,13.87991715]
[1756962223940,8.59344142,206.7,206.66,13.87991715]
[1756962224238,8.59344142,206.7,206.68,13.59559401]
[1756962224422,8.59344142,206.7,206.67,13.59559401]
[1756962224605,8.59344142,206.68,206.63,0.28432314]
[1756962224807,0.69,206.69,206.63,0.28432314]
[1756962225028,8.59344142,206.67,206.63,0.28432314]
[1756962225220,0.69,206.71,206.63,0.83432314]
[1756962225419,8.59344142,206.68,206.63,0.83432314]
[1756962225838,8.59344142,206.68,206.65,0.28432314]
[1756962226013,8.59344142,206.69,206.67,13.59559401]
[1756962226213,8.59344142,206.7,206.67,13.59559401]
[1756962226412,0.69,206.73,206.68,0.28432314]
[1756962226609,14.28559401,206.76,206.7,0.28432314]
[1756962226916,8.59344142,206.75,206.7,0.28432314]
[1756962227118,8.59344142,206.77,206.72,0.28432314]
[1756962227638,9.28344142,206.77,206.72,0.28432314]
[1756962227838,0.69,206.76,206.72,0.28432314]
[1756962228019,8.59344142,206.75,206.74,13.59559401]
[1756962228718,9.28344142,206.75,206.73,13.59559401]
[1756962228940,9.28344142,206.74,206.67,13.59559401]
[1756962229136,8.59344142,206.68,206.67,13.59559401]
[1756962229546,8.59344142,206.69,206.67,13.59559401]
[1756962229838,0.69,206.75,206.67,22.73903543]
[1756962230043,8.59344142,206.73,206.7,13.59559401]
[1756962230347,8.59344142,206.72,206.7,13.59559401]
[1756962230534,8.59344142,206.71,206.7,13.59559401]
[1756962230715,8.59344142,206.72,206.7,13.59559401]
[1756962231957,8.59344142,206.73,206.7,13.59559401]
[1756962232137,0.69,206.76,206.72,13.59559401]
[1756962232335,8.59344142,206.74,206.72,13.59559401]
[1756962233747,4.83583428,206.79,206.72,4.83736582]
[1756962233931,0.69,206.79,206.72,4.83736582]
[1756962234130,8.59344142,206.77,206.73,13.59559401]
[1756962234331,8.59344142,206.76,206.73,13.59559401]
[1756962234829,8.59344142,206.76,206.74,4.83699332]
[1756962235027,0.69,206.79,206.75,13.59559401]
[1756962235541,3.23711304,206.78,206.75,13.59559401]
[1756962235934,0.69,206.8,206.75,13.59559401]
[1756962236124,3.23711304,206.79,206.75,13.59559401]
[1756962236330,3.92711304,206.79,206.75,13.59559401]
[1756962236548,3.23711304,206.78,206.75,13.59559401]
[1756962236747,3.23711304,206.76,206.72,4.83724965]
[1756962236924,0.69,206.75,206.73,13.59559401]
[1756962237239,0.69,206.77,206.73,18.43269458]
[1756962237640,0.69,206.79,206.73,18.43269458]
[1756962238036,8.58578377,206.75,206.73,18.43269458]
[1756962238240,8.58578377,206.74,206.73,18.43269458]
[1756962238432,0.69,206.77,206.73,18.43269458]
[1756962238633,8.58578377,206.75,206.73,18.43269458]
[1756962238857,8.58578377,206.74,206.73,13.59559401]
[1756962239039,8.58578377,206.75,206.73,13.59559401]
[1756962239750,8.58578377,206.76,206.73,13.59559401]
[1756962240134,0.69,206.78,206.73,13.59559401]
[1756962240339,26.0,206.82,206.76,0.28432314]
[1756962240340,0.69,206.82,206.76,0.28432314]
[1756962240650,8.58578377,206.82,206.78,4.83605764]
[1756962240872,8.58578377,206.81,206.78,4.83605764]
[1756962241035,0.69,206.82,206.78,4.83605764]
[1756962241232,0.69,206.82,206.79,13.59559401]
[1756962241452,8.58578377,206.81,206.79,13.59559401]
[1756962241630,0.69,206.82,206.79,13.59559401]
[1756962241830,8.58578377,206.8,206.79,13.59559401]
[1756962242543,9.27578377,206.8,206.76,13.59559401]
[1756962242742,8.58578377,206.77,206.76,13.59559401]
[1756962242972,8.58578377,206.77,206.75,4.83674427]
[1756962243549,0.69,206.79,206.75,13.59559401]
[1756962243753,8.58578377,206.77,206.75,13.59559401]
[1756962243959,8.58578377,206.76,206.72,4.83723994]
[1756962244173,0.69,206.75,206.73,13.59559401]
[1756962244346,8.58578377,206.74,206.73,13.59559401]
[1756962244688,9.27578377,206.74,206.64,12.64780737]
[1756962244867,8.58578377,206.68,206.65,4.83909992]
[1756962245371,8.58578377,206.68,206.66,13.59559401]
[1756962245747,0.69,206.72,206.66,18.43431206]
[1756962246170,8.58578377,206.68,206.66,18.43431206]
[1756962246463,8.58578377,206.69,206.66,18.43431206]
[1756962246666,8.58578377,206.71,206.67,0.55]
[1756962246870,0.69,206.74,206.67,0.55]
[1756962247044,0.69,206.74,206.67,0.28432314]
[1756962247245,8.58578377,206.73,206.68,13.59559401]
[1756962247468,8.58578377,206.75,206.69,9.42010691]
[1756962247842,8.58578377,206.75,206.71,13.87991715]
[1756962248074,0.69,206.77,206.71,13.87991715]
[1756962248273,8.58578377,206.76,206.71,13.87991715]
[1756962248447,8.58578377,206.72,206.71,13.59559401]
[1756962248647,0.69,206.75,206.71,13.59559401]
[1756962248847,8.58578377,206.73,206.71,13.59559401]
[1756962249055,9.27578377,206.73,206.7,13.59559401]
[1756962249253,0.69,206.76,206.7,13.59559401]
[1756962249557,8.58578377,206.73,206.7,13.59559401]
[1756962250269,8.58578377,206.74,206.71,4.83769532]
[1756962250768,8.58578377,206.75,206.71,4.83769532]
[1756962250975,0.69,206.76,206.71,4.83769532]
[1756962251160,8.58578377,206.75,206.71,4.83769532]
[1756962251872,9.27578377,206.75,206.71,4.83769532]
[1756962252467,9.27578377,206.75,206.7,13.87991715]
[1756962252668,8.58578377,206.74,206.7,13.87991715]
[1756962252864,0.68,206.73,206.7,13.87991715]
[1756962253075,8.58578377,206.71,206.66,4.83886576]
[1756962253276,8.58578377,206.69,206.67,13.59559401]
[1756962254281,8.58578377,206.68,206.66,4.83886576]
[1756962254474,8.58578377,206.69,206.66,13.59559401]
[1756962254655,9.26578377,206.69,206.66,13.59559401]
[1756962254856,8.58578377,206.69,206.66,13.59559401]
[1756962255756,8.58578377,206.67,206.63,45.08367674]
[1756962255950,8.58578377,206.66,206.64,13.59559401]
[1756962256670,8.58578377,206.66,206.64,18.43488053]
[1756962257270,8.58578377,206.69,206.64,18.43488053]
[1756962257479,8.58578377,206.68,206.64,18.43488053]
[1756962257657,0.68,206.69,206.65,0.28432314]
[1756962257863,9.26578377,206.69,206.65,0.28432314]
[1756962258063,8.58578377,206.68,206.65,0.28432314]
[1756962258467,8.58578377,206.66,206.64,18.43488053]
[1756962259456,8.58578377,206.66,206.64,4.83928652]
[1756962259662,8.58578377,206.65,206.64,4.83928652]
[1756962260070,9.26578377,206.65,206.63,13.59559401]
[1756962260272,9.26578377,206.64,206.61,4.86999054]
[1756962260468,8.58578377,206.62,206.61,0.03]
[1756962260666,0.68,206.63,206.61,0.03]
[1756962260908,9.26578377,206.62,206.61,0.03]
[1756962262463,30.83769532,206.71,206.61,0.03]
[1756962262659,8.58578377,206.62,206.61,0.03]
[1756962263162,0.68,206.62,206.59,0.03]
[1756962263458,8.58578377,206.6,206.59,0.03]
[1756962263866,21.77319014,206.71,206.59,0.03]
[1756962263867,0.68,206.67,206.6,13.59559401]
[1756962264057,8.58578377,206.65,206.6,13.59559401]
[1756962264261,8.58578377,206.61,206.59,0.03]
[1756962264688,0.68,206.64,206.59,13.62559401]
[1756962264988,8.58578377,206.65,206.6,0.28432314]
[1756962265369,8.58578377,206.64,206.6,0.28432314]
[1756962265569,8.58578377,206.63,206.61,0.03]
[1756962265770,0.68,206.67,206.61,0.03]
[1756962265971,8.58578377,206.64,206.61,0.03]
[1756962266587,65.68,206.69,206.61,4.87003678]
[1756962266788,8.58578377,206.64,206.61,4.87003678]
[1756962267398,9.26578377,206.64,206.61,4.87003678]
[1756962267694,0.68,206.63,206.61,0.03]
[1756962268003,13.22188151,206.63,206.61,0.03]
[1756962268381,13.22188151,206.62,206.61,0.03]
[1756962268794,0.68,206.62,206.61,0.03]
[1756962269109,13.22188151,206.62,206.61,0.03]
[1756962269276,18.06168404,206.62,206.59,0.03]
[1756962269473,12.54188151,206.6,206.59,0.03]
[1756962269898,13.22188151,206.6,206.59,0.03]
[1756962270599,18.06215256,206.6,206.59,0.03]
[1756962271079,5.52027105,206.6,206.59,0.03]
[1756962271287,57.64215256,206.6,206.59,0.03]
[1756962271471,18.06215256,206.6,206.59,0.03]
[1756962271675,57.64215256,206.6,206.59,0.03]
[1756962271896,18.06215256,206.6,206.59,0.03]
[1756962272091,57.64215256,206.6,206.59,0.03]
[1756962273779,0.68,206.64,206.59,0.03]
[1756962274008,12.54188151,206.61,206.59,0.03]
[1756962274194,0.68,206.63,206.59,0.03]
[1756962274195,12.54188151,206.6,206.59,0.03]
[1756962275077,39.58,206.64,206.59,0.03]
[1756962275294,12.54188151,206.61,206.59,0.03]
[1756962275874,12.54188151,206.63,206.6,13.59559401]
[1756962276089,12.54188151,206.63,206.59,0.03]
[1756962276796,12.54188151,206.62,206.59,13.90991715]
[1756962277300,12.54188151,206.6,206.59,0.03]
[1756962277478,0.68,206.62,206.59,0.03]
[1756962277678,12.54188151,206.6,206.59,0.03]
[1756962279684,0.68,206.63,206.59,0.03]
[1756962279883,12.54188151,206.61,206.59,0.03]
[1756962280802,0.68,206.65,206.59,13.62559401]
[1756962280999,0.68,206.65,206.59,13.90991715]
[1756962281211,12.54188151,206.65,206.59,27.06179866]
[1756962281517,39.58,206.67,206.59,14.51991715]
[1756962281518,12.54188151,206.63,206.59,14.51991715]
[1756962281802,12.54188151,206.61,206.59,13.62559401]
[1756962282504,12.54188151,206.61,206.59,0.03]
[1756962282712,12.54188151,206.6,206.59,0.03]
[1756962283210,13.21188151,206.6,206.59,0.03]
[1756962284310,12.54188151,206.6,206.59,0.03]
[1756962284702,26.0,206.65,206.62,13.59559401]
[1756962284703,12.54188151,206.65,206.62,13.59559401]
[1756962284905,44.41827986,206.69,206.62,13.59559401]
[1756962285094,12.54188151,206.64,206.62,13.59559401]
[1756962285410,0.67,206.67,206.62,13.59559401]
[1756962285612,12.54188151,206.64,206.62,13.59559401]
[1756962286114,30.83796592,206.7,206.63,4.83956831]
[1756962286305,12.54188151,206.65,206.63,4.83956831]
[1756962286801,0.06,206.64,206.63,18.43516232]
[1756962288420,0.06,206.64,206.63,18.71948546]
[1756962288619,0.06,206.64,206.63,19.32948546]
[1756962288998,0.06,206.64,206.63,18.71948546]
[1756962289518,0.06,206.64,206.63,19.32948546]
[1756962289994,0.06,206.64,206.63,24.39243158]
[1756962290192,0.06,206.73,206.65,4.83909992]
[1756962290193,5.06294612,206.71,206.65,4.83909992]
[1756962290403,5.06294612,206.71,206.67,0.28432314]
[1756962290718,5.06294612,206.72,206.69,13.59559401]
[1756962291025,5.12294612,206.73,206.69,0.61]
[1756962291321,0.06,206.73,206.71,13.59559401]
[1756962291494,0.06,206.73,206.7,13.59559401]
[1756962291815,0.06,206.73,206.71,0.89432314]
[1756962292313,0.06,206.73,206.72,18.71737845]
[1756962293198,0.06,206.73,206.72,19.32737845]
[1756962293603,0.06,206.73,206.72,24.39032457]
[1756962294615,0.06,206.73,206.72,19.32737845]
[1756962294821,0.06,206.73,206.72,24.39032457]
[1756962295511,0.06,206.73,206.72,19.32737845]
[1756962296420,0.06,206.73,206.72,24.39032457]
[1756962297393,0.06,206.76,206.73,13.87991715]
[1756962297592,0.06,206.76,206.73,19.55286327]
[1756962297804,0.06,206.76,206.74,0.61]
[1756962298322,0.06,206.76,206.75,5.12108251]
[1756962299902,0.06,206.76,206.75,18.71667652]
[1756962300231,1e-08,206.76,206.75,24.38962264]
[1756962301034,1e-08,206.76,206.75,19.32667652]
[1756962301236,1e-08,206.76,206.75,24.38962264]
[1756962301732,1e-08,206.76,206.75,24.97003376]
[1756962302023,1e-08,206.76,206.75,14.48991715]
[1756962302240,1e-08,206.8,206.79,39.59559401]
[1756962302408,1e-08,206.8,206.79,79.41991715]
[1756962302607,1e-08,206.8,206.79,59.09286327]
[1756962302825,1e-08,206.8,206.79,54.02991715]
[1756962303327,1e-08,206.8,206.79,59.09286327]
[1756962304226,1e-08,206.8,206.79,63.92868705]
[1756962306106,0.2,206.86,206.85,13.87991715]
[1756962307411,1e-08,206.86,206.85,18.94286327]
[1756962307822,1e-08,206.86,206.85,53.39991715]
[1756962308226,1e-08,206.86,206.85,58.23433822]
[1756962308733,1e-08,206.86,206.85,63.29728434]
[1756962309113,0.67000001,206.86,206.85,57.95001508]
[1756962309509,0.67000001,206.86,206.85,58.23433822]
[1756962310137,1e-08,206.86,206.85,63.29728434]
[1756962310343,1e-08,206.86,206.85,58.23433822]
[1756962310642,1e-08,206.86,206.85,63.29728434]
[1756962310818,1e-08,206.86,206.85,58.23433822]
[1756962311012,1e-08,206.86,206.85,63.29728434]
[1756962312116,0.70000001,206.86,206.85,58.21433822]
[1756962312339,1e-08,206.86,206.85,58.21433822]
[1756962312746,0.70000001,206.86,206.85,18.71433822]
[1756962312915,0.70000001,206.86,206.85,58.21433822]
[1756962315525,1e-08,206.86,206.85,58.21433822]
[1756962315924,0.7,206.94,206.86,0.28432314]
[1756962316132,0.7,206.94,206.92,13.59559401]
[1756962316435,0.7,206.97,206.94,13.59559401]
[1756962316635,0.7,206.96,206.94,13.59559401]
[1756962316840,0.7,206.95,206.94,13.87991715]
[1756962317342,0.7,206.95,206.94,18.71223569]
[1756962318450,5.76294612,206.95,206.9,13.87991715]
[1756962318644,5.06294612,206.92,206.9,13.87991715]
[1756962318832,0.7,206.91,206.9,13.87991715]
[1756962319847,0.7,206.91,206.9,18.71316992]
[1756962320636,0.7,206.91,206.9,13.87991715]
[1756962321949,0.7,206.91,206.8,83.66294612]
[1756962322132,5.06294612,206.87,206.81,57.91095013]
[1756962322333,0.7,206.86,206.78,13.59559401]
[1756962322552,0.7,206.86,206.81,13.59559401]
[1756962322553,5.06294612,206.85,206.81,13.59559401]
[1756962322850,0.7,206.84,206.81,13.59559401]
[1756962323046,0.7,206.84,206.78,4.83582565]
[1756962323047,5.76294612,206.84,206.78,4.83582565]
[1756962323352,0.7,206.84,206.8,13.87991715]
[1756962323534,0.7,206.86,206.82,13.87991715]
[1756962323729,5.76294612,206.86,206.82,18.4307046]
[1756962323929,0.7,206.86,206.83,0.03]
[1756962324132,26.0,206.91,206.83,39.79432314]
[1756962324357,0.06,206.95,206.87,0.28432314]
[1756962324534,0.7,206.92,206.89,0.28432314]
[1756962325048,0.7,206.92,206.91,0.28432314]
[1756962325348,0.7,206.92,206.87,39.48]
[1756962325529,12.51100956,206.89,206.86,13.87991715]
[1756962325733,0.7,206.88,206.86,13.87991715]
[1756962326131,12.51100956,206.88,206.86,13.87991715]
[1756962326333,0.06,206.95,206.86,31.22504675]
[1756962326626,0.7,206.94,206.89,13.87991715]
[1756962326849,0.7,206.93,206.89,53.35991715]
[1756962327045,0.7,206.92,206.89,53.35991715]
[1756962327655,13.21100956,206.92,206.89,58.1933963]
[1756962327836,0.7,206.92,206.89,53.35991715]
[1756962328037,0.7,206.92,206.89,58.19332158]
[1756962328434,13.21100956,206.92,206.89,58.19332158]
[1756962329549,8.57101008,206.93,206.89,58.19332158]
[1756962329736,9.27101008,206.93,206.89,58.19332158]
[1756962329932,0.7,206.92,206.89,58.19332158]
[1756962330149,0.7,206.91,206.89,58.19332158]
[1756962330352,0.7,206.94,206.89,58.19332158]
[1756962330529,0.06,206.95,206.89,58.19332158]
[1756962330733,8.63101008,206.95,206.89,66.76433166]
[1756962331246,0.06,206.95,206.91,13.59559401]
[1756962331438,0.06,206.95,206.92,0.28432314]
[1756962331636,8.57101008,206.93,206.85,8.57101008]
[1756962331847,8.57101008,206.9,206.86,53.07559401]
[1756962332029,9.27101008,206.9,206.86,53.07559401]
[1756962332235,8.57101008,206.91,206.86,53.07559401]
[1756962332429,9.27101008,206.91,206.87,0.28432314]
[1756962332862,9.27101008,206.91,206.88,13.59559401]
[1756962333152,0.06,206.95,206.88,13.59559401]
[1756962333342,8.57101008,206.91,206.89,0.28432314]
[1756962333537,9.27101008,206.91,206.89,0.28432314]
[1756962333755,0.06,206.95,206.89,0.28432314]
[1756962333756,0.7,206.94,206.89,0.28432314]
[1756962333937,8.57101008,206.92,206.89,0.28432314]
[1756962334141,9.27101008,206.92,206.89,0.28432314]
[1756962334544,8.57101008,206.9,206.88,13.59559401]
[1756962334851,8.57101008,206.9,206.87,39.48]
[1756962334852,0.7,206.89,206.85,13.59559401]
[1756962335039,8.57101008,206.87,206.85,13.59559401]
[1756962335852,4.83294571,206.92,206.83,4.86475123]
[1756962335853,9.27101008,206.86,206.83,4.86475123]
[1756962336032,9.27101008,206.86,206.84,13.59559401]
[1756962337551,9.27101008,206.85,206.84,13.59559401]
[1756962337949,8.57101008,206.85,206.84,13.59559401]
[1756962338355,8.57101008,206.86,206.84,18.43024881]
[1756962338555,0.7,206.9,206.85,0.28432314]
[1756962338761,8.57101008,206.91,206.87,13.87991715]
[1756962339061,0.7,206.91,206.87,13.87991715]
[1756962339366,0.7,206.91,206.89,13.59559401]
[1756962339744,0.06,206.95,206.89,13.59559401]
[1756962339945,8.57101008,206.92,206.89,13.59559401]
[1756962340265,9.27101008,206.92,206.89,13.59559401]
[1756962340844,9.27101008,206.92,206.89,18.42889205]
[1756962341060,0.7,206.94,206.89,18.42889205]
[1756962341268,8.57101008,206.92,206.9,0.28432314]
[1756962341571,9.27101008,206.92,206.9,0.28432314]
[1756962342470,0.77,206.95,206.9,0.28432314]
[1756962342756,8.57101008,206.94,206.9,0.28432314]
[1756962342966,8.57101008,206.94,206.92,13.87991715]
[1756962343150,0.06,206.95,206.92,13.87991715]
[1756962344562,0.06,206.95,206.92,53.35991715]
[1756962345071,0.06,206.95,206.94,13.87991715]
[1756962345668,0.06,206.95,206.94,15.06979537]
[1756962346001,0.06,206.95,206.94,23.06092723]
[1756962346673,0.06,206.95,206.94,27.89324577]
[1756962347465,0.06,206.95,206.94,58.17223569]
[1756962347660,4.00097966,206.95,206.91,13.59559401]
[1756962347863,3.23097966,206.92,206.88,39.46]
[1756962348068,3.23097966,206.89,206.88,39.46]
[1756962348369,0.71,206.94,206.89,13.59559401]
[1756962348670,3.23097966,206.92,206.9,0.28432314]
[1756962348858,3.94097966,206.92,206.9,0.28432314]
[1756962349068,3.23097966,206.91,206.9,0.28432314]
[1756962349265,3.94097966,206.91,206.9,0.28432314]
[1756962349466,3.94097966,206.91,206.86,53.14559401]
[1756962349656,3.23097966,206.89,206.87,0.28432314]
[1756962349974,3.23097966,206.9,206.86,53.14559401]
[1756962350180,3.23097966,206.9,206.86,57.9797559]
[1756962350388,3.94097966,206.9,206.87,0.28432314]
[1756962350673,0.71,206.9,206.87,0.28432314]
[1756962350879,3.94097966,206.9,206.89,0.28432314]
[1756962351182,3.23097966,206.91,206.89,0.28432314]
[1756962351357,0.06,206.95,206.91,0.28432314]
[1756962351558,0.06,206.95,206.94,0.28432314]
[1756962352776,0.06,206.95,206.94,18.71223569]
[1756962354551,0.06,206.95,206.94,27.27995537]
[1756962354760,0.06,206.95,206.94,19.32223569]
[1756962354965,0.06,206.95,206.94,28.46983359]
[1756962355168,1e-08,206.95,206.94,45.90211391]
[1756962355355,1e-08,206.95,206.94,54.46983359]
[1756962355761,1e-08,206.95,206.94,45.90211391]
[1756962356085,9.27771969,206.95,206.94,13.59559401]
[1756962356378,0.71000001,206.95,206.9,18.42873702]
[1756962356557,0.71000001,206.95,206.91,0.28432314]
[1756962356558,0.71,206.94,206.91,0.28432314]
[1756962356758,8.56771968,206.92,206.91,0.28432314]
[1756962357080,9.27771968,206.92,206.91,0.28432314]
[1756962357480,9.27771968,206.92,206.9,18.42873702]
[1756962357676,8.56771968,206.91,206.9,18.42873702]
[1756962357886,1e-08,206.95,206.9,18.42873702]
[1756962358092,1e-08,206.95,206.91,0.28432314]
[1756962358275,8.56771968,206.92,206.86,0.03]
[1756962358585,8.56771968,206.93,206.9,13.59559401]
[1756962358782,8.56771968,206.93,206.91,0.28432314]
[1756962358783,9.27771968,206.93,206.91,0.28432314]
[1756962358967,8.56771968,206.92,206.91,0.28432314]
[1756962359167,9.27771968,206.92,206.9,53.41559401]
[1756962359362,9.27771968,206.92,206.91,0.28432314]
[1756962360082,0.71,206.92,206.91,0.28432314]
[1756962360270,0.71000001,206.95,206.92,13.59559401]
[1756962360470,9.27771969,206.95,206.92,13.59559401]
[1756962360676,9.27771969,206.95,206.9,39.82]
[1756962360677,8.56771968,206.93,206.9,39.82]
[1756962360870,8.56771968,206.93,206.92,0.28432314]
[1756962361192,1e-08,206.95,206.92,0.28432314]
[1756962361483,8.56771968,206.93,206.92,0.28432314]
[1756962361682,9.27771968,206.93,206.92,0.28432314]
[1756962361981,1e-08,206.95,206.92,0.28432314]
[1756962361982,0.71000001,206.95,206.92,0.28432314]
[1756962362185,8.56771968,206.93,206.92,0.28432314]
[1756962362398,8.56771968,206.93,206.92,5.11710875]
[1756962362693,9.27771968,206.94,206.92,5.11710875]
[1756962363084,0.71,206.94,206.92,5.11710875]
[1756962363286,9.27771968,206.94,206.92,5.11710875]
[1756962363501,0.71,206.94,206.92,5.11710875]
[1756962364016,9.27771968,206.93,206.92,5.11710875]
[1756962364295,1e-08,206.95,206.92,5.11710875]
[1756962364602,8.56771968,206.94,206.92,5.11710875]
[1756962364899,1e-08,206.95,206.92,5.72710875]
[1756962365068,1e-08,206.95,206.94,13.87991715]
[1756962365387,8.56771969,206.95,206.94,0.28432314]
[1756962365681,8.56771969,206.95,206.91,4.83285321]
[1756962365890,8.56771968,206.93,206.92,0.28432314]
[1756962366393,9.27771968,206.93,206.92,0.28432314]
[1756962367288,0.71,206.93,206.92,0.28432314]
[1756962367488,9.27771968,206.93,206.92,0.28432314]
[1756962367689,1e-08,206.95,206.92,18.71270276]
[1756962368193,9.27771969,206.95,206.92,18.71270276]
[1756962369190,8.56771969,206.95,206.92,18.71270276]
[1756962369385,9.27771969,206.95,206.92,18.71270276]
[1756962369593,0.71000001,206.95,206.92,18.71270276]
[1756962369776,9.27771969,206.95,206.92,18.71270276]
[1756962370591,1e-08,206.95,206.92,18.71270276]
[1756962371003,9.27771969,206.95,206.92,18.71270276]
[1756962371201,0.71000001,206.95,206.92,18.71270276]
[1756962371397,1e-08,206.95,206.92,18.71270276]